bitfinex-derivatives/quotes_SOLF0:USTF0_20251224
["timestamp","ask_amount","ask_price","bid_price","bid_amount"]
[1766548250926,0.05564862,122.68,122.65,0.00067856]
[1766548255434,96.3,122.67,122.65,0.00067856]
[1766548257936,97.77093425,122.67,122.65,0.00067856]
[1766548261538,1.47093425,122.67,122.65,0.00067856]
[1766548261742,96.3,122.66,122.65,0.00067856]
[1766548263736,96.3,122.66,122.62,25.47127985]
[1766548263737,96.3,122.66,122.62,0.00127985]
[1766548263932,1.47093425,122.64,122.58,14.48]
[1766548264131,96.3,122.63,122.58,14.48]
[1766548264540,96.3,122.63,122.57,29.3763741]
[1766548264839,0.06067856,122.61,122.59,0.05741525]
[1766548265033,1.47093425,122.62,122.59,0.05741525]
[1766548266541,1.47093425,122.62,122.57,14.48]
[1766548266542,1.47093425,122.6,122.55,14.48]
[1766548266737,96.3,122.59,122.55,14.48]
[1766548267543,0.05741525,122.58,122.56,0.0540738]
[1766548268449,7.3438,122.63,122.56,14.5340738]
[1766548268748,1.47093425,122.61,122.56,0.0540738]
[1766548270945,1.47093425,122.59,122.56,0.0540738]
[1766548271146,97.79093425,122.59,122.56,0.0540738]
[1766548272743,1.47093425,122.59,122.56,0.0540738]
[1766548272944,97.79093425,122.59,122.56,0.0540738]
[1766548273336,96.32,122.59,122.56,0.0540738]
[1766548273541,96.34,122.6,122.56,14.5340738]
[1766548274344,1.47093425,122.62,122.56,14.5340738]
[1766548274545,96.34,122.62,122.56,14.5340738]
[1766548275541,96.34,122.62,122.56,21.8814738]
[1766548275743,96.34,122.62,122.57,14.48]
[1766548277252,1.47093425,122.61,122.56,0.0540738]
[1766548277451,1.47093425,122.63,122.57,14.48]
[1766548277655,1.47093425,122.65,122.59,14.53348214]
[1766548277840,1.47093425,122.65,122.61,0.06177033]
[1766548278248,1.47093425,122.67,122.61,14.54177033]
[1766548278548,1.47093425,122.67,122.63,0.05765082]
[1766548282357,1.47093425,122.65,122.59,14.48]
[1766548283259,0.05765082,122.63,122.61,0.06123197]
[1766548283450,0.05226944,122.63,122.61,0.06123197]
[1766548291261,0.05226944,122.63,122.61,0.00123197]
[1766548291461,1.52320369,122.63,122.57,15.07]
[1766548292347,1.52320369,122.63,122.59,0.06244302]
[1766548294459,1.52320369,122.63,122.59,0.00244302]
[1766548294660,1.47093425,122.61,122.59,0.00244302]
[1766548296161,1.47093425,122.61,122.56,15.07]
[1766548297157,1.47093425,122.61,122.57,0.05652549]
[1766548297356,0.06177355,122.6,122.57,0.05652549]
[1766548300867,7.3433,122.64,122.57,15.12652549]
[1766548301065,1.47093425,122.62,122.57,15.12652549]
[1766548301867,0.05749868,122.61,122.57,15.12652549]
[1766548306969,0.05749868,122.61,122.57,0.05652549]
[1766548307172,0.05749868,122.61,122.55,15.82]
[1766548307474,1.47093425,122.6,122.53,15.82]
[1766548308371,0.05308235,122.58,122.55,0.05312166]
[1766548311478,0.05308235,122.58,122.55,0.05312166]
[1766548311778,0.00308235,122.58,122.55,15.87312166]
[1766548312073,1.47093425,122.61,122.55,15.87312166]
[1766548312278,1.47093425,122.63,122.55,15.87312166]
[1766548312574,1.47093425,122.63,122.56,15.82]
[1766548312970,96.36,122.64,122.56,15.82]
[1766548313161,0.0585017,122.61,122.59,0.05276948]
[1766548316480,0.0585017,122.61,122.59,0.00276948]
[1766548317077,0.0585017,122.61,122.56,15.82]
[1766548317279,1.47093425,122.6,122.56,15.82]
[1766548317471,1.47093425,122.6,122.54,15.82]
[1766548317972,0.05271785,122.58,122.56,0.05322484]
[1766548318177,0.05480759,122.58,122.56,0.05666551]
[1766548320272,0.00480759,122.58,122.56,15.87666551]
[1766548333290,96.36,122.63,122.56,15.87666551]
[1766548333490,98.66117011,122.63,122.56,15.87666551]
[1766548334398,0.05442242,122.61,122.56,15.87666551]
[1766548336495,7.342,122.66,122.58,15.65]
[1766548337101,9.3407,122.68,122.58,15.65]
[1766548337301,96.36,122.67,122.58,15.65]
[1766548337502,0.05508238,122.64,122.62,0.05859556]
[1766548338402,96.36,122.67,122.62,0.05859556]
[1766548343615,106.00257011,122.67,122.57,7.3468]
[1766548343807,106.00257011,122.67,122.58,15.65]
[1766548343808,2.30117011,122.65,122.58,15.65]
[1766548344001,106.00257011,122.67,122.58,15.65]
[1766548344199,96.34,122.66,122.58,15.65]
[1766548344712,0.05794767,122.63,122.61,0.0521128]
[1766548355512,7.3414,122.67,122.61,14.4621128]
[1766548355716,26.53,122.72,122.61,14.4621128]
[1766548355911,2.30117011,122.69,122.61,14.41]
[1766548356122,96.32,122.7,122.61,14.41]
[1766548356323,2.30117011,122.71,122.61,14.41]
[1766548356526,98.64117011,122.71,122.65,0.06037581]
[1766548361324,105.98017011,122.71,122.65,0.06037581]
[1766548361821,9.64017011,122.71,122.65,0.06037581]
[1766548362025,96.32,122.7,122.65,0.06037581]
[1766548363423,103.6596,122.7,122.65,0.06037581]
[1766548363627,2.30117011,122.69,122.65,0.06037581]
[1766548363930,2.30117011,122.69,122.63,14.41]
[1766548364222,2.30117011,122.69,122.6,14.41]
[1766548364223,9.64137011,122.69,122.6,14.41]
[1766548364421,2.30117011,122.67,122.6,14.41]
[1766548364817,0.05727103,122.65,122.62,0.05463343]
[1766548380036,1.52870803,122.65,122.62,0.05463343]
[1766548383639,0.05727103,122.65,122.62,0.05463343]
[1766548385439,0.05727103,122.65,122.62,15.85463343]
[1766548385641,1.471437,122.67,122.62,15.85463343]
[1766548386950,1.471437,122.69,122.62,15.85463343]
[1766548387153,1.471437,122.69,122.64,15.85303624]
[1766548388335,96.32,122.7,122.64,15.85303624]
[1766548388541,1.471437,122.69,122.64,15.85303624]
[1766548400054,1.471437,122.7,122.64,15.85303624]
[1766548409166,96.32,122.71,122.64,15.85303624]
[1766548415880,1.471437,122.71,122.64,15.85303624]
[1766548423482,8.809837,122.72,122.64,15.85303624]
[1766548423782,8.809837,122.72,122.67,0.05824712]
[1766548424381,1.471437,122.7,122.67,0.05824712]
[1766548424684,1.471437,122.7,122.64,15.03]
[1766548425881,0.05895922,122.68,122.66,0.0540767]
[1766548426576,7.3371,122.74,122.66,15.0840767]
[1766548426783,1.471437,122.73,122.66,15.03]
[1766548427583,1.471437,122.73,122.68,0.05669619]
[1766548428186,1.471437,122.71,122.68,0.05669619]
[1766548428583,1.471437,122.71,122.68,15.08669619]
[1766548436495,1.471437,122.73,122.68,15.08669619]
[1766548440097,103.6171,122.74,122.68,15.08669619]
[1766548440098,105.91347296,122.74,122.68,15.08669619]
[1766548440798,2.29637296,122.72,122.68,0.05669619]
[1766548442694,2.29637296,122.72,122.68,14.98669619]
[1766548442894,11.63297296,122.75,122.68,14.98669619]
[1766548443101,96.28,122.74,122.68,14.98669619]
[1766548444603,103.6172,122.74,122.68,14.98669619]
[1766548452112,7.3372,122.74,122.68,14.98669619]
[1766548452310,96.28,122.73,122.68,14.98669619]
[1766548452918,96.28,122.74,122.68,14.98669619]
[1766548453219,96.28,122.74,122.7,14.98149366]
[1766548454918,96.28,122.75,122.7,14.98149366]
[1766548468726,9.63227296,122.76,122.7,14.98149366]
[1766548468926,96.26,122.75,122.7,14.98149366]
[1766548471825,98.26,122.77,122.7,14.98149366]
[1766548472030,96.26,122.77,122.7,14.98149366]
[1766548473523,2.29637296,122.76,122.7,14.98149366]
[1766548473720,2.29637296,122.74,122.7,0.05149366]
[1766548474123,2.29637296,122.74,122.68,14.85]
[1766548474731,98.55637296,122.74,122.68,14.85]
[1766548475132,0.05762694,122.72,122.7,0.05715016]
[1766548475435,0.05762694,122.72,122.68,14.85]
[1766548476327,0.05762694,122.72,122.69,0.05599631]
[1766548478840,0.05762694,122.72,122.69,16.03599631]
[1766548480740,96.26,122.74,122.69,16.03599631]
[1766548481733,0.05299335,122.73,122.69,16.03599631]
[1766548483437,118.94459774,122.82,122.71,15.98]
[1766548483741,98.55637296,122.81,122.71,15.98]
[1766548484238,105.88937296,122.81,122.72,15.98]
[1766548484438,105.88937296,122.81,122.75,0.05973297]
[1766548486140,7.3336,122.8,122.75,0.05973297]
[1766548486346,2.35524075,122.79,122.73,15.98]
[1766548486934,7.3357,122.77,122.69,15.98]
[1766548487136,98.53637296,122.76,122.69,15.98]
[1766548487334,0.05672977,122.74,122.71,0.05666451]
[1766548492651,96.24,122.77,122.71,16.03666451]
[1766548492845,103.5743,122.79,122.71,16.03666451]
[1766548493037,103.5743,122.79,122.71,15.98]
[1766548493751,103.5743,122.79,122.74,0.05790592]
[1766548494152,9.69076847,122.78,122.71,15.98]
[1766548495052,9.69076847,122.78,122.73,0.06008197]
[1766548495455,9.69076847,122.78,122.71,15.98]
[1766548496652,9.69076847,122.78,122.73,0.06001361]
[1766548497651,7.3355,122.77,122.68,15.98]
[1766548497848,96.24,122.76,122.68,15.98]
[1766548498741,0.05156229,122.73,122.71,0.0604228]
[1766548503152,0.05156229,122.73,122.68,14.74]
[1766548504259,1.46892575,122.72,122.69,0.05387377]
[1766548505458,1.46892575,122.71,122.69,0.05387377]
[1766548506067,1.46892575,122.71,122.66,14.74]
[1766548506454,1.46892575,122.72,122.66,14.74]
[1766548507170,0.0547873,122.7,122.68,0.05527439]
[1766548507377,0.0047873,122.7,122.68,0.05527439]
[1766548509669,1.47371305,122.7,122.67,14.74]
[1766548510069,1.47371305,122.7,122.65,14.74]
[1766548510770,1.46892575,122.69,122.66,0.06183847]
[1766548511171,0.0047873,122.7,122.66,0.06183847]
[1766548511370,1.46892575,122.69,122.66,0.06183847]
[1766548511670,1.46892575,122.69,122.66,14.80183847]
[1766548511868,0.0047873,122.7,122.66,14.80183847]
[1766548512066,1.47371305,122.7,122.66,14.80183847]
[1766548522582,0.0047873,122.7,122.66,14.80183847]
[1766548529481,1.47371305,122.7,122.66,14.80183847]
[1766548533887,0.0047873,122.7,122.66,14.80183847]
[1766548534093,1.46892575,122.74,122.66,14.80183847]
[1766548534295,1.46892575,122.74,122.66,14.74]
[1766548534992,0.06072274,122.71,122.69,0.0536012]
[1766548535193,1.46892575,122.74,122.69,14.9836012]
[1766548535393,210.3872,122.77,122.69,14.9836012]
[1766548535693,1.46892575,122.75,122.69,14.93]
[1766548536095,0.05894724,122.73,122.71,0.06246802]
[1766548539396,1.46892575,122.75,122.71,14.99246802]
[1766548540296,0.05792273,122.74,122.71,14.99246802]
[1766548575412,2.29594514,122.72,122.66,62.0]
[1766548575614,96.26,122.71,122.65,15.23]
[1766548575810,2.29594514,122.7,122.65,15.23]
[1766548576622,0.05311977,122.69,122.66,0.05599178]
[1766548576813,0.05311977,122.69,122.66,15.28599178]
[1766548581227,0.05311977,122.69,122.61,62.0]
[1766548581429,2.29594514,122.7,122.61,62.0]
[1766548582226,2.29594514,122.7,122.64,0.06026404]
[1766548583320,0.06207555,122.68,122.65,15.23]
[1766548585034,0.00207555,122.68,122.65,15.23]
[1766548591738,0.00207555,122.68,122.65,0.6508873]
[1766548592042,2.29802069,122.68,122.64,0.06026404]
[1766548593034,2.29802069,122.68,122.59,96.26]
[1766548593342,2.29594514,122.68,122.59,96.26]
[1766548593929,2.29594514,122.68,122.6,15.27]
[1766548594130,2.29594514,122.68,122.64,15.27]
[1766548595138,0.05359267,122.67,122.64,15.27]
[1766548602245,0.00359267,122.67,122.64,15.27]
[1766548623964,1.47473029,122.67,122.64,15.27]
[1766548627269,1.47113762,122.65,122.59,62.0]
[1766548627468,47.65995881,122.66,122.57,115.75893762]
[1766548627664,97.79113762,122.67,122.57,115.75893762]
[1766548628263,97.79113762,122.67,122.61,0.05624149]
[1766548628472,0.00236286,122.63,122.61,0.05624149]
[1766548633175,1.47350048,122.63,122.61,0.05624149]
[1766548633369,0.00236286,122.63,122.61,0.05624149]
[1766548636578,0.00236286,122.63,122.57,62.0]
[1766548636773,0.00236286,122.63,122.57,69.3468]
[1766548637378,0.00236286,122.63,122.57,84.2431741]
[1766548637578,0.00236286,122.63,122.59,0.06249337]
[1766548641979,1.47350048,122.63,122.59,0.06249337]
[1766548644089,17.29350048,122.63,122.59,0.06249337]
[1766548649392,1.47350048,122.63,122.59,0.06249337]
[1766548650092,0.00236286,122.63,122.59,0.06249337]
[1766548667195,19.43113762,122.61,122.56,62.0]
[1766548667400,17.96,122.61,122.54,96.32]
[1766548667598,1.47113762,122.64,122.54,212.10683762]
[1766548667791,17.96,122.63,122.54,212.10683762]
[1766548667996,17.96,122.63,122.54,210.6357]
[1766548668198,0.06110509,122.6,122.57,0.06040152]
[1766548669405,0.00110509,122.6,122.57,0.06040152]
[1766548677810,1.47113762,122.64,122.57,0.06040152]
[1766548677811,17.96,122.64,122.57,0.06040152]
[1766548678001,17.96,122.64,122.58,96.34]
[1766548678903,0.05306549,122.62,122.6,0.06274304]
[1766548679616,17.96,122.64,122.6,0.06274304]
[1766548679802,17.96,122.66,122.6,0.06274304]
[1766548680716,0.05875969,122.64,122.6,0.06274304]
[1766548682513,19.02,122.67,122.6,0.06274304]
[1766548683416,0.05249558,122.65,122.6,0.06274304]
[1766548688123,19.07249558,122.65,122.6,0.06274304]
[1766548696929,19.07249558,122.65,122.6,7.40774304]
[1766548701421,9.558e-05,122.65,122.61,7.3444]
[1766548702328,0.02920063,122.64,122.61,7.3444]
[1766548702627,9.558e-05,122.65,122.61,7.3444]
[1766548703129,9.558e-05,122.65,122.61,103.6644]
[1766548707429,9.558e-05,122.65,122.61,96.32]
[1766548708035,19.02,122.71,122.61,103.6644]
[1766548708330,19.02,122.71,122.65,0.05230393]
[1766548715339,19.78,122.68,122.65,0.00230393]
[1766548730563,19.78,122.68,122.6,36.3613741]
[1766548730755,19.78,122.68,122.61,19.85]
[1766548731551,0.05230393,122.66,122.63,0.06145279]
[1766548732357,7.43230393,122.66,122.63,0.06145279]
[1766548732558,7.43230393,122.66,122.63,0.00145279]
[1766548755271,7.43230393,122.66,122.63,0.00145279]
[1766548763276,0.05230393,122.66,122.63,0.00145279]
[1766548773491,1.47086636,122.7,122.63,0.00145279]
[1766548773492,12.25,122.69,122.63,21.66145279]
[1766548773783,12.25,122.69,122.63,21.66]
[1766548774477,0.05848404,122.67,122.63,21.66]
[1766548774680,0.05848404,122.67,122.65,0.0542698]
[1766548775686,12.25,122.69,122.65,0.0542698]
[1766548780189,12.25,122.69,122.65,0.0042698]
[1766548781289,13.01151596,122.68,122.65,0.0042698]
[1766548803010,1.47086636,122.72,122.65,0.0042698]
[1766548803215,1.47086636,122.72,122.65,22.4142698]
[1766548804420,8.80866636,122.73,122.65,22.4142698]
[1766548804612,8.80866636,122.73,122.68,0.00209465]
[1766548804917,1.52,122.72,122.68,0.00209465]
[1766548805518,0.05,122.71,122.68,0.00209465]
[1766548805720,1.59,122.7,122.68,0.00209465]
[1766548808809,1.59,122.7,122.65,22.41]
[1766548809627,1.59,122.7,122.64,7.3426]
[1766548809816,7.3378,122.73,122.66,0.05863548]
[1766548809817,0.05209465,122.68,122.66,0.05863548]
[1766548810018,1.87,122.69,122.63,22.41]
[1766548811027,0.05217455,122.67,122.65,0.0541709]
[1766548814428,0.05217455,122.67,122.63,22.41]
[1766548815426,0.05217455,122.67,122.64,0.0577787]
[1766548833141,3.37217455,122.67,122.62,62.0]
[1766548833344,3.37217455,122.67,122.6,45.4614741]
[1766548833645,3.37217455,122.67,122.6,30.5651]
[1766548834240,3.37217455,122.67,122.62,0.05164541]
[1766548836446,3.37217455,122.67,122.62,0.00164541]
[1766548836841,3.42,122.65,122.56,24.78]
[1766548837048,3.42,122.63,122.56,24.78]
[1766548837836,3.47,122.65,122.59,24.78]
[1766548838951,3.47,122.65,122.61,0.05495758]
[1766548839246,3.62,122.67,122.61,24.83495758]
[1766548839449,3.62,122.67,122.61,24.78]
[1766548839641,3.62,122.67,122.61,86.78]
[1766548840045,0.05622033,122.65,122.63,0.06066705]
[1766548840842,3.72622033,122.65,122.63,0.00066705]
[1766548841049,3.72622033,122.65,122.59,24.78]
[1766548841446,3.72622033,122.65,122.57,103.6468]
[1766548841654,3.67,122.65,122.57,128.4268]
[1766548841843,3.67,122.65,122.57,121.08]
[1766548842040,3.67,122.65,122.6,0.05830445]
[1766548842239,0.06227413,122.62,122.6,0.05830445]
[1766548844646,0.06227413,122.62,122.57,121.08]
[1766548844848,3.79227413,122.62,122.57,121.08]
[1766548845558,3.79227413,122.62,122.58,0.05327]
[1766548846351,0.06227413,122.62,122.58,24.83327]
[1766548848752,0.00227413,122.62,122.58,24.83327]
[1766548848952,3.91,122.65,122.58,24.83327]
[1766548849158,3.97,122.67,122.59,24.78]
[1766548849959,0.05575482,122.64,122.62,0.06237066]
[1766548856559,4.29,122.68,122.62,24.84237066]
[1766548857456,0.05976947,122.66,122.62,24.84237066]
[1766548858065,4.38976947,122.66,122.62,0.06237066]
[1766548858666,0.05976947,122.66,122.62,24.84237066]
[1766548861565,4.56976947,122.66,122.62,0.06237066]
[1766548862763,4.56976947,122.66,122.58,25.85]
[1766548863065,4.51,122.66,122.58,25.85]
[1766548863661,0.0612255,122.63,122.61,0.05986662]
[1766548863861,0.05152033,122.63,122.61,0.05986662]
[1766548864662,4.61,122.67,122.61,25.90986662]
[1766548865773,0.06097718,122.65,122.61,25.90986662]
[1766548881386,5.21097718,122.65,122.61,25.90986662]
[1766548881585,5.21097718,122.65,122.61,0.05986662]
[1766548882989,5.21097718,122.65,122.59,25.85]
[1766548883982,5.21097718,122.65,122.61,0.05934675]
[1766548886288,5.29,122.64,122.59,25.85]
[1766548886489,5.29,122.64,122.57,122.15]
[1766548886691,5.29,122.63,122.57,122.15]
[1766548887284,5.29,122.63,122.57,25.85]
[1766548887484,0.05863859,122.61,122.59,0.05801224]
[1766548888989,0.05863859,122.61,122.59,0.03055857]
[1766548889589,0.05863859,122.61,122.57,25.85]
[1766548890286,1.47098316,122.6,122.54,25.85]
[1766548890494,6.87098316,122.6,122.54,25.85]
[1766548890693,0.05152591,122.58,122.56,0.06264338]
[1766548891088,0.00152591,122.58,122.56,0.06264338]
[1766548891593,5.47152591,122.58,122.53,26.45]
[1766548892093,0.00152591,122.58,122.53,26.45]
[1766548892794,0.00152591,122.58,122.54,0.05244463]
[1766548893393,0.00152591,122.58,122.54,26.50244463]
[1766548903903,7.24098316,122.63,122.54,26.50244463]
[1766548904098,7.24098316,122.63,122.56,24.47]
[1766548904989,7.24098316,122.63,122.55,1.47098316]
[1766548904990,0.05334528,122.61,122.58,24.52769007]
[1766548907999,0.00334528,122.61,122.58,24.52769007]
[1766548909503,14.76308316,122.66,122.58,24.52769007]
[1766548909692,14.76308316,122.66,122.58,24.47]
[1766548909887,5.95,122.66,122.58,25.94098316]
[1766548910097,13.2908,122.68,122.58,25.94098316]
[1766548910292,13.2908,122.68,122.61,24.47]
[1766548910493,0.06098829,122.66,122.63,24.52204108]
[1766548913097,0.06098829,122.66,122.63,0.05204108]
[1766548917605,0.06098829,122.66,122.63,24.52204108]
[1766548921203,0.00098829,122.66,122.63,24.52204108]
[1766548921405,2.0,122.71,122.63,24.52204108]
[1766548921609,7.71098316,122.72,122.63,24.47]
[1766548922612,0.05829971,122.69,122.66,26.17557097]
[1766548922805,13.6472,122.74,122.66,26.17557097]
[1766548923013,1.47098316,122.73,122.66,26.12]
[1766548923808,1.47098316,122.73,122.68,26.17354371]
[1766548924812,0.06210018,122.72,122.68,26.17354371]
[1766548927314,1.47098316,122.71,122.68,0.05354371]
[1766548929522,7.96098316,122.71,122.68,0.05354371]
[1766548929921,6.49,122.71,122.68,0.05354371]
[1766548932020,2.35942352,122.72,122.68,0.05354371]
[1766548932221,0.06210018,122.72,122.68,0.05354371]
[1766548934732,2.29732334,122.7,122.64,26.12]
[1766548934933,102.82,122.69,122.64,26.12]
[1766548935832,0.06218812,122.68,122.65,0.05736397]
[1766548940341,6.67218812,122.68,122.65,0.05736397]
[1766548943743,102.97218812,122.68,122.65,0.05736397]
[1766548946748,6.67218812,122.68,122.65,0.05736397]
[1766548947245,102.97218812,122.68,122.65,0.05736397]
[1766548948949,6.67218812,122.68,122.65,0.05736397]
[1766548949144,102.97218812,122.68,122.65,0.05736397]
[1766548951848,0.06218812,122.68,122.65,0.05736397]
[1766548952049,0.06218812,122.68,122.65,25.43736397]
[1766548958159,0.00218812,122.68,122.65,25.43736397]
[1766548960555,6.91,122.72,122.65,25.43736397]
[1766548960759,103.21,122.72,122.65,25.43736397]
[1766548961651,0.05828033,122.7,122.65,25.43736397]
[1766548964550,25.95,122.74,122.65,96.35736397]
[1766548964760,25.95,122.74,122.66,20.93]
[1766548965364,25.95,122.74,122.68,21.03]
[1766548965565,0.05565125,122.72,122.7,0.05886475]
[1766548968859,25.95,122.76,122.7,21.37886475]
[1766548983676,25.95,122.76,122.7,0.05886475]
[1766548983876,28.22,122.75,122.7,0.05886475]
[1766548984873,35.5567,122.75,122.7,0.05886475]
[1766548985074,28.22,122.74,122.7,0.05886475]
[1766548985276,30.51732334,122.74,122.7,0.05886475]
[1766548990981,28.22,122.74,122.7,0.05886475]
[1766548991980,29.68930794,122.74,122.7,23.35886475]
[1766548993080,29.68930794,122.74,122.7,0.05886475]
[1766548995183,7.336,122.76,122.7,0.05886475]
[1766548995184,29.68930794,122.76,122.7,23.56886475]
[1766549010810,29.68930794,122.76,122.71,24.45]
[1766549020705,29.68930794,122.76,122.7,0.05886475]
[1766549021108,28.22,122.76,122.7,25.03886475]
[1766549021409,29.68930794,122.76,122.7,25.03886475]
[1766549023206,96.26,122.77,122.71,25.1]
[1766549023411,125.21,122.77,122.73,0.05582756]
[1766549025915,28.95,122.76,122.7,25.24]
[1766549026608,28.95,122.76,122.71,25.28]
[1766549026915,0.05733082,122.75,122.72,0.05257171]
[1766549027303,30.41930794,122.78,122.72,25.37257171]
[1766549033214,28.95,122.78,122.72,25.37257171]
[1766549033414,1.46930794,122.77,122.72,25.37257171]
[1766549033617,30.41930794,122.77,122.72,25.37257171]
[1766549035710,38.2843,122.79,122.72,25.37257171]
[1766549035917,28.95,122.79,122.72,25.37257171]
[1766549036913,28.95,122.79,122.73,25.65]
[1766549037117,28.95,122.79,122.75,0.05359287]
[1766549040930,28.95,122.81,122.75,25.84359287]
[1766549041124,30.41930794,122.81,122.75,25.84359287]
[1766549047631,96.22,122.84,122.75,25.84359287]
[1766549047830,30.88930794,122.86,122.78,21.15]
[1766549048241,30.88930794,122.86,122.81,0.05570647]
[1766549048440,29.42,122.86,122.81,0.05570647]
[1766549048641,30.88930794,122.83,122.75,21.24]
[1766549048940,30.88930794,122.81,122.75,21.24]
[1766549049135,29.42,122.81,122.75,21.24]
[1766549049339,30.88930794,122.81,122.75,21.24]
[1766549049838,30.94217839,122.79,122.77,0.00099183]
[1766549050138,30.88930794,122.79,122.74,96.22]
[1766549050334,1.46930794,122.77,122.71,117.59]
[1766549050530,1.46930794,122.76,122.71,117.59]
[1766549051138,0.06201231,122.75,122.72,0.06280515]
[1766549053137,29.48201231,122.75,122.72,0.06280515]
[1766549053337,29.48201231,122.75,122.71,96.22]
[1766549053637,29.48201231,122.75,122.66,7.3416]
[1766549053638,29.42,122.73,122.66,96.22]
[1766549053841,29.42,122.73,122.66,117.76]
[1766549054543,0.06061778,122.71,122.68,0.06077757]
[1766549057738,29.42,122.73,122.68,21.73077757]
[1766549058043,29.42,122.75,122.68,21.73077757]
[1766549058242,29.42,122.75,122.68,21.67]
[1766549058844,0.05295112,122.73,122.7,0.06009926]
[1766549063943,29.42,122.75,122.7,0.06009926]
[1766549064951,0.0540755,122.74,122.7,0.06009926]
[1766549066249,29.4740755,122.74,122.7,0.06009926]
[1766549073962,19.28598025,122.74,122.7,0.06009926]
[1766549087973,19.28598025,122.74,122.7,9.926e-05]
[1766549088471,21.5811325,122.74,122.66,111.20263663]
[1766549088781,21.5811325,122.74,122.66,96.22]
[1766549089574,28.35140555,122.71,122.66,96.22]
[1766549089779,18.16167078,122.71,122.66,96.22]
[1766549090683,0.05374281,122.7,122.67,0.05486042]
[1766549091980,28.29,122.73,122.67,29.13486042]
[1766549092281,28.29,122.73,122.67,29.08]
[1766549093175,28.29,122.73,122.69,0.05249087]
[1766549096189,28.29,122.73,122.69,0.00249087]
[1766549097284,28.29,122.71,122.69,0.00249087]
[1766549099793,18.09971762,122.71,122.69,0.00249087]
[1766549101186,18.09971762,122.71,122.66,96.22]
[1766549101989,18.09971762,122.71,122.65,44.06263663]
[1766549102190,0.05754936,122.69,122.64,14.98263663]
[1766549102391,30.85,122.68,122.67,0.00361642]
[1766549103096,0.05754936,122.69,122.67,0.00361642]
[1766549104292,30.90754936,122.69,122.67,0.00361642]
[1766549106485,30.90754936,122.69,122.63,96.26]
[1766549107493,30.90754936,122.69,122.65,0.05633709]
[1766549108992,30.90754936,122.69,122.63,96.26]
[1766549110090,30.90754936,122.69,122.65,0.06113474]
[1766549114198,30.90754936,122.69,122.62,108.02263663]
[1766549114398,30.85,122.67,122.61,96.28]
[1766549115401,30.90377091,122.65,122.63,0.00028144]
[1766549115696,30.90377091,122.65,122.59,14.98263663]
[1766549116099,30.90377091,122.65,122.58,142.30263663]
[1766549116594,30.90377091,122.65,122.6,0.06039372]
[1766549116803,30.90377091,122.65,122.6,0.00039372]
[1766549117301,30.85,122.63,122.6,0.00039372]
[1766549118499,30.85,122.63,122.56,31.04]
[1766549119094,30.85,122.63,122.56,32.51060718]
[1766549119595,0.05550624,122.61,122.58,0.05786616]
[1766549121295,30.90550624,122.61,122.58,0.05786616]
[1766549121989,30.90550624,122.61,122.54,31.04]
[1766549122193,30.90550624,122.61,122.56,31.04]
[1766549122394,30.85,122.61,122.56,31.04]
[1766549123001,30.85,122.63,122.57,31.09515821]
[1766549124003,0.06140278,122.61,122.57,31.09515821]
[1766549132508,0.06140278,122.61,122.57,127.43515821]
[1766549134212,0.06140278,122.61,122.58,30.63]
[1766549140919,7.3424,122.65,122.58,30.63]
[1766549140920,29.19,122.65,122.58,30.63]
[1766549143416,0.05210343,122.65,122.63,0.05630177]
[1766549143819,29.24210343,122.65,122.61,96.34]
[1766549144821,29.24210343,122.65,122.62,0.05825584]
[1766549149126,29.24210343,122.65,122.59,29.44]
[1766549150019,29.24210343,122.65,122.61,0.0525578]
[1766549151322,0.05210343,122.65,122.61,29.4925578]
[1766549151724,29.24210343,122.65,122.61,29.4925578]
[1766549151917,29.24210343,122.65,122.61,0.0525578]
[1766549162229,29.78,122.67,122.61,29.2925578]
[1766549162824,29.78,122.67,122.61,0.0525578]
[1766549163224,29.83398475,122.65,122.61,0.0525578]
[1766549170846,29.83398475,122.65,122.61,29.2925578]
[1766549171047,0.05398475,122.65,122.61,29.2925578]
[1766549171639,29.78,122.66,122.61,29.2925578]
[1766549172740,0.06029254,122.65,122.61,29.2925578]
[1766549178456,29.78,122.68,122.61,29.2925578]